Cogmind - Beta 9.6 @@@ ROGUE MODE // 2020.09.07 @ 07:31:45 Player: Calanor Result: Smashed by cave-in Performance ------------- Evolutions (0) 0 Regions Visited (1) 200 Robots Destroyed (45) 225 Value Destroyed (500) 500 Prototype IDs (0) 0 Alien Tech Used (0) 0 Bonus (8) 8 TOTAL SCORE: 933 Bonus ------- High Alert Combat Kills 8 Cogmind --------- Core Integrity 0/250 Matter 270/300 Energy 247/250 System Corruption 12% Temperature Cool (145) Movement Rolling (100) Ox1 Location -10/Materials Parts ------- > --- POWER (1) -------- Ion Engine > --- PROPULSION (2) --- Armored Wheel Armored Wheel > --- UTILITY (2) ------ High-capacity Storage Unit Improved Terrain Scanner > --- WEAPON (2) ------- (None) > --- INVENTORY (12) --- Armored Wheel Armored Wheel Medium Storage Unit Medium Laser Grenade Launcher Peak State ------------ > --- POWER ------------ Ion Engine > --- PROPULSION ------- Armored Wheel Armored Wheel > --- UTILITY ---------- High-capacity Storage Unit Improved Terrain Scanner > --- WEAPON ----------- Medium Laser Medium Laser > --- INVENTORY -------- Armored Wheel Armored Wheel Armored Wheel Armored Wheel Medium Storage Unit Grenade Launcher Mining Laser [Rating: 11] Favorites ----------- Power Ion Engine Engine Ion Engine Propulsion Armored Wheel Treads Light Treads Wheel Armored Wheel Utility Improved Terrain Scanner Device Improved Terrain Scanner Storage High-capacity Storage Unit Processor Seismic Analyzer Weapon Medium Laser Energy Gun Medium Laser Ballistic Gun Light Assault Rifle Launcher Grenade Launcher Special Weapon Mining Laser Build | -11 -10 ------- Run | Scr Mat Slots Evolved . | . . Power . | . . Propulsion . | . . Utility . | . . Weapon . | . . Parts Attached 38 | 8 30 Power 3 | 1 2 Engine 3 | 1 2 Core . | . . Reactor . | . . Propulsion 13 | 2 11 Treads 2 | . 2 Leg . | . . Wheel 11 | 2 9 Hover . | . . Flight . | . . Utility 5 | 2 3 Device 1 | 1 . Storage 2 | . 2 Processor 2 | 1 1 Hackware . | . . Protection . | . . Artifact . | . . Weapon 17 | 3 14 Energy Gun 7 | 2 5 Energy Cannon . | . . Ballistic Gun 5 | 1 4 Ballistic Cannon . | . . Launcher 2 | . 2 Special Weapon 3 | . 3 Impact Weapon . | . . Slashing Weapon . | . . Piercing Weapon . | . . Special Melee Weapon . | . . Unidentified Prototypes . | . . Parts Lost 5 | . 5 Power . | . . Propulsion 1 | . 1 Utility . | . . Weapon 4 | . 4 Highest Loss Streak 2 | . 2 Average Slot Usage (%) 99 | . 99 Engine 14 | . 14 Wheel 27 | . 27 Device 14 | . 14 Storage 6 | . 6 Processor 7 | . 7 Energy Gun 16 | . 16 Ballistic Gun 6 | . 6 Special Weapon 3 | . 3 Naked Turns . | . . Heaviest Build 43 | 7 43 Greatest Support 24 | 20 24 Greatest Overweight (x) 3 | . 3 Average Overweight (x) . | . . Largest Inventory Capacity 12 | 4 12 Average Capacity 7 | 4 7 Most Carried 8 | 4 8 Average Carried 5 | 2 5 Final Capacity 12 | 4 12 Final Carried 5 | 3 5 Class Distribution -------------------- 80% | Mutant 19% | Scavenger-Mutant Dominant Class ---------------- Mutant | -10/Materials Resources | -11 -10 ----------- Run | Scr Mat Matter Collected 716 | 260 456 Remotely . | . . Salvage Created 1072 | 112 960 Parts 91 | 8 83 Haulers Intercepted 2 | . 2 Recyclers Shooed 2 | . 2 Parts Field Recycled . | . . Retrieved Matter . | . . Parts Self-Destructed . | . . Prevented . | . . Kills | -11 -10 ------- Run | Scr Mat Combat Hostiles Destroyed 19 | 1 18 Guns 13 | 1 12 AOE 6 | . 6 Classes Destroyed 9 | 3 6 Worker 8 | 1 7 Builder 6 | . 6 Tunneler 3 | 2 1 Hauler 2 | . 2 Recycler 3 | . 3 Mechanic 1 | . 1 Watcher 3 | . 3 Swarmer 12 | . 12 Grunt 7 | 1 6 Best Kill Streak 4 | 3 4 Combat Bots Only 4 | 1 4 Max Kills in Single Turn 2 | 1 2 Gunslinging 1 | . 1 Exploded 1 | . 1 Melee . | . . Uniques/NPCs Destroyed . | . . Combat | -11 -10 -------- Run | Scr Mat Damage Taken 1361 | 12 1349 Core 311 | . 311 Absorbed by Shields . | . . Core Remaining (%) 100 | 100 . Volleys Fired 164 | 11 153 Largest 2 | 2 2 Hottest 200 | 90 200 Shots Fired 303 | 22 281 Gun 264 | 22 242 Cannon . | . . Launcher 10 | . 10 Special 29 | . 29 Kinetic 86 | . 86 Thermal 207 | 22 185 Explosive 10 | . 10 Electromagnetic . | . . Robot Hit Streak 9 | 3 9 Robot Miss Streak 10 | 1 10 Penetration Max . | . . Secondary Targets 3 | . 3 Max Gunslinging Chain 1 | . 1 Shots Hit Robots 138 | 6 132 Core Hits 63 | 5 58 Critical Hits . | . . Critical Kills . | . . Critical Parts Destroyed . | . . Melee Attacks . | . . Impact . | . . Slashing . | . . Piercing . | . . Sneak Attacks . | . . Combat Hostiles . | . . Follow-up Attacks . | . . Damage Inflicted 1978 | 72 1906 Guns 1379 | 72 1307 Cannons . | . . Explosions 575 | . 575 Melee . | . . Ramming . | . . Kinetic 335 | . 335 Thermal 1068 | 72 996 Explosive 575 | . 575 Electromagnetic . | . . Impact . | . . Slashing . | . . Piercing . | . . Highest Corruption 6 | . 6 Average Corruption 6 | . 6 Corruption Purged . | . . Effects 5 | . 5 Message Errors 1 | . 1 Heat Flow Errors 1 | . 1 Energy Discharges 1 | . 1 Targeting Errors 2 | . 2 Overload Shots . | . . Overflow Damage 22 | . 22 Projectiles . | . . Explosions 22 | . 22 Melee . | . . Knockbacks . | . . Impact . | . . Kinetic . | . . Secondary . | . . Self-Inflicted Damage . | . . Shots . | . . Rammed . | . . Targets Rammed . | . . Kicked . | . . Crushed . | . . Highest Temperature 465 | 286 465 Average Temperature 128 | 148 126 Received Heat Transfer 120 | 6 114 Effects 11 | . 11 Shutdowns 3 | . 3 Energy Bleed 2 | . 2 Interference 5 | . 5 Short Circuit 1 | . 1 Siege Activations . | . . Robots Corrupted . | . . Combat Hostiles . | . . Parts Fried . | . . Impact Corruptions . | . . Robots Melted 1 | . 1 Combat Hostiles . | . . Parts Melted 3 | . 3 Heat Transferred 3099 | 198 2901 Parts Sabotaged . | . . Parts Stolen . | . . Parts Stripped . | . . Power Chain Reactions . | . . Missiles Intercepted . | . . Alert | -11 -10 ------- Run | Scr Mat Peak Influence 412 | 35 412 Average Influence 202 | 10 221 Maximum Alert Level 2 | . 2 Low Security (%) 38 | 100 33 Level 1 61 | . 66 Level 2 . | . . Level 3 . | . . Level 4 . | . . Level 5 . | . . High Security . | . . Max Security . | . . Squads Dispatched 3 | . 3 Investigation 2 | . 2 Extermination . | . . Reinforcement 1 | . 1 Assault . | . . Garrison . | . . Intercept . | . . Construction Impeded . | . . Haulers Reinforced . | . . Stealth | -11 -10 --------- Run | Scr Mat Distress Signals . | . . Communications Jammed . | . . Distress Signals . | . . Times Spotted 40 | 1 39 Peak Tracking Total 4 | 1 4 Tactical Retreats 1 | . 1 Traps | -11 -10 ------- Run | Scr Mat Traps Triggered . | . . Indirectly . | . . Trap Hack Attempts . | . . Triggered . | . . Disarmed . | . . Reprogrammed . | . . Reused . | . . Traps Extracted . | . . Installed . | . . Triggered . | . . Machines | -11 -10 ---------- Run | Scr Mat Machines Disabled . | . . Max in Single Turn . | . . Machines Sabotaged . | . . Garrisons Compromised . | . . Overloaded Fab Kills . | . . Fab Network Shutdowns . | . . Hacking | -11 -10 --------- Run | Scr Mat Machines Accessed 7 | . 7 Terminals 5 | . 5 Fabricators . | . . Repair Stations . | . . Recycling Units 2 | . 2 Scanalyzers . | . . Garrison Access . | . . Total Hacks 27 | . 27 Successful 15 | . 15 Failed 12 | . 12 Catastrophic 1 | . 1 Database Lockouts . | . . Manual . | . . Terminals 22 | . 22 Fabricators . | . . Repair Stations . | . . Recycling Units 5 | . 5 Scanalyzers . | . . Garrison Access . | . . Terminal Hacks 12 | . 12 Record 2 | . 2 Robot Analysis 1 | . 1 Emergency Access Points 1 | . 1 Terminal Index 1 | . 1 Locate Traps 2 | . 2 Dispatch Records 1 | . 1 Maintenance Status 1 | . 1 Transport Status 1 | . 1 Hauler Manifests 1 | . 1 Registered Components 1 | . 1 Fabricator Hacks . | . . Repair Station Hacks . | . . Recycling Unit Hacks 3 | . 3 Report Inventory 2 | . 2 Retrieve Components 1 | . 1 Scanalyzer . | . . Garrison Access Hacks . | . . Unauthorized Hacks . | . . Terminals . | . . Fabricators . | . . Repair Stations . | . . Recycling Units . | . . Scanalyzers . | . . Garrison Access . | . . Data Cores Recovered . | . . Used . | . . Hacking Detections 4 | . 4 Full Trace Events 4 | . 4 Feedback Events . | . . Feedback Blocked . | . . Robot Schematics Acquired . | . . Robots Built . | . . Matter . | . . Time . | . . Total Robot Build Rating . | . . Part Schematics Acquired . | . . Parts Built . | . . Matter . | . . Time . | . . Total Part Build Rating . | . . Parts Repaired . | . . Time . | . . Parts Recycled . | . . Recycled Matter . | . . Retrieved Matter . | . . Retrieved Components 9 | . 9 Parts Scanalyzed . | . . Part Schematics Acquired . | . . Parts Damaged . | . . Bothacking | -11 -10 ------------ Run | Scr Mat Used RIF Installer . | . . Robots Hacked . | . . Non-combat . | . . Combat . | . . Robot Hacks Applied . | . . Relay Couplers Released . | . . Robots Rewired . | . . Allies Hacked . | . . Hacks Repelled . | . . Allies | -11 -10 -------- Run | Scr Mat Total Allies . | . . Largest Group . | . . Highest-Rated Group . | . . Highest-Rated Ally . | . . Total Orders . | . . Ally Attacks . | . . Total Damage . | . . Kills . | . . Allies Corrupted . | . . Allies Melted . | . . Intel | -11 -10 ------- Run | Scr Mat Robot Analysis Total 1 | . 1 Derelict Logs Recovered . | . . Drone Launches . | . . Drone Recoveries . | . . Exploration | -11 -10 ------------- Run | Scr Mat Turns Passed 1642 | 141 1501 Spaces Moved 1084 | 118 966 Core 23 | 23 . Treads . | . . Legs . | . . Wheels 1061 | 95 966 Hover . | . . Flight . | . . Fastest Speed 50 | 50 80 Average Speed 91 | 74 93 Slowest Speed 120 | 80 120 Overloaded Moves . | . . Propulsion Burnouts . | . . Robots Hopped . | . . Cave-ins Triggered 3 | . 3 Exploration Rate (%) 46 | 8 84 Regions Visited 1 Branch Regions . Pre-discovered Areas . | . . Known Exits Taken . | . . Unknown Exits Taken 1 | 1 . Scrap Searched . | . . Spaces Dug 25 | . 25 Terrain Destroyed 70 | . 70 Melee . | . . Projectile 26 | . 26 AOE 44 | . 44 Actions | -11 -10 --------- Run | Scr Mat Total 1391 | 149 1242 Wait 51 | . 51 Move 1083 | 117 966 Hop . | . . Pick Up 29 | 11 18 Fast Attach 5 | 1 4 Attach 10 | 6 4 Detach 1 | . 1 Swap 23 | 1 22 Drop 25 | 2 23 Fire 164 | 11 153 Melee . | . . Ram . | . . Kick . | . . Crush . | . . Escape Stasis . | . . Rewire . | . . Trap . | . . Miscellaneous . | . . Route ------- -11/Scrapyard -10/Materials (discovered 5 exits: [*Mat x3] / [*Min x2]) History --------- Turn | Location | Event 2 | -11/Scrapyard | Met Revision 17 97 | -11/Scrapyard | Discovered new exit (range 8) 142 | -11/Scrapyard | Entered Materials 190 | -10/Materials | Discovered new exit (range 9) 219 | -10/Materials | Discovered new exit (range 12) 255 | -10/Materials | Discovered new exit (range 16) 309 | -10/Materials | Build established: Mutant 382 | -10/Materials | Core integrity fell below 50% 645 | -10/Materials | Build established: Scavenger-Mutant 798 | -10/Materials | Discovered new exit (range 13) 842 | -10/Materials | Discovered new exit (range 14) 952 | -10/Materials | Build established: Mutant 1567 | -10/Materials | Crushed by falling debris 1567 | -10/Materials | Core integrity fell below 20% 1591 | -10/Materials | Crushed by falling debris 1644 | -10/Materials | Crushed by falling debris 1644 | -10/Materials | Smashed by cave-in Last Messages --------------- Acquired Arm. Wheel. Dropped Arm. Wheel. System corrupted: Mining Laser targeting data glitched. U-05 Engineer builds a Wall. The unstable cave ceiling collapses. Arm. Wheel crushed. U-05 Engineer builds a Wall. System corrupted: Heat flow error (+265). U-05 Engineer builds a Wall. Power failure, Ion Engine shutdown. System corrupted: Med. Laser targeting data glitched. U-05 Engineer builds a Wall. Mining Laser permanently disabled. Overheating: Short circuit. The unstable cave ceiling collapses. Crushed by falling debris. Med. Laser destroyed. System corrupted by crushing effect (+2). Broken Mining Laser destroyed. System corrupted by crushing effect (+4). Map ----- +----------------------------------------------------+ | ??# """ # ? | | ### # ###???#? | | #?# # ###?#??# | | ??###""####+#### ##???#??? | | ?#?# # ###?#???? | | ???# """ # #?#??#?#? | | #??# """ # ########? | | ##?# """ """ # ## #? | | ???# Y" # ## | | ??## """ # | | ???# # | | ?#?###+############## | | ##??## # ## ### | | ???## # ! """ """ ## #?? | | ??#?# + """ """ ## #?? | | ?#?## # """ """ ## #?? | | ????# # ## ##? | | ???## #######+###### #? | | ??## #? | | ???# ## | | #??# #? | | ?#?# ##### ##### #? | | #??## ##???# ##??#######? | | ??### #???# ??????????? | | ##### #?## ??#?##????# | | # #@# ##?# ?????#?##? | | ##### #### < ???#?????? | | ????####??# ?????????? | | #?????????#"" ""#????#???? | | ?#????????##"|||"#####?????? | | ????????????#"""#??#???????? | | ????????????####?#?????#???? | | ????????#??#??????#??#?????? | | ???????#???????????????????? | | | | | | | | | | | | | | | | | | | | | | | | | | | | | | | | | +----------------------------------------------------+ Best States ------------- Heat Dissipation 25 Energy Generation 10 Energy Capacity 250 Matter Stores 300 Matter Capacity 300 Sight Range 16 Terrain Scan Range 16 Terrain Scan Density 60 Evasion (%) 50 Recoil Reduction 1 Item Schematics ----------------- None Robot Schematics ------------------ None Fabricated ------------ Nothing Alien Tech Used ----------------- None Achievements -------------- It's Just You Challenges ------------ None Game ------ Seed SignalMobileDriver Manual? 0 Play Time 00:32:02 Cumulative 5.0 hours Start 2020.09.07 @ 06:55:08 End 2020.09.07 @ 07:31:45 Sessions 1 Manual Loads 0 Difficulty Rogue Special Mode None Game No. 3 Rogue 3 Adventurer 0 Explorer 0 Win Type - Total 0 Types 0/0/0/0/0/0/0 Lore% 2 Gallery% 5 Achievement% 5 Wizard Run 0 Options --------- ASCII 0 Keyboard 0 Movement Numpad Keybinds 0 Fullscreen 1 Font 24/Terminus Map View 76x50 Tactical HUD 0 Map Filters NONE Filters NONE Steam 1 RUN: 27fb4568-3daf-4db6-bfa8-d6e46fd56cf0